Cogmind - Beta 13 @@@ ROGUE MODE // 2024.05.31 @ 20:37:21 Player: Blade Result: Destroyed by S-10 Pest with Light Assault Rifle Performance ------------- Evolutions (1) 500 Regions Visited (2) 400 Robots Destroyed (20) 100 Value Destroyed (659) 659 Prototype IDs (0) 0 Alien Tech Used (0) 0 Bonus (11) 11 TOTAL SCORE: 1670 Bonus ------- High Alert Combat Kills 11 Cogmind --------- Core Integrity 0/400 Matter 300/300 Energy 99/100 System Corruption 1% Temperature Cool (6) Movement Core (100) Ox1 Location -9/Materials Parts ------- > --- POWER (1) -------- (None) > --- PROPULSION (2) --- (None) > --- UTILITY (4) ------ Small Storage Unit > --- WEAPON (2) ------- (None) > --- INVENTORY (8) ---- Ion Engine Light Treads Light Treads Aluminum Leg Compact Wheel Compact Wheel VTOL Module Peak State ------------ > --- POWER ------------ Improved Ion Engine > --- PROPULSION ------- Aluminum Leg Aluminum Leg > --- UTILITY ---------- Small Storage Unit > --- WEAPON ----------- Light Assault Rifle Light Cannon > --- INVENTORY -------- Ion Engine Light Treads Light Treads Aluminum Leg Compact Wheel Compact Wheel VTOL Module Light Assault Rifle [Rating: 7] Favorites ----------- Power Ion Engine Engine Ion Engine Propulsion Aluminum Leg Leg Aluminum Leg Utility Small Storage Unit Storage Small Storage Unit Weapon Light Assault Rifle Energy Gun Small Laser Ballistic Gun Light Assault Rifle Ballistic Cannon Light Cannon Build | -11 -10 -9 ------- Run | Yrd Mat Mat Slots Evolved 2 | . . 2 Power . | . . . Propulsion . | . . . Utility 2 | . . 2 Weapon . | . . . Parts Attached 11 | . 3 8 Power 3 | . 1 2 Engine 3 | . 1 2 Core . | . . . Reactor . | . . . Propulsion 4 | . . 4 Treads . | . . . Leg 4 | . . 4 Wheel . | . . . Hover . | . . . Flight . | . . . Utility . | . . . Device . | . . . Storage . | . . . Processor . | . . . Hackware . | . . . Protection . | . . . Artifact . | . . . Weapon 4 | . 2 2 Energy Gun 1 | . . 1 Energy Cannon . | . . . Ballistic Gun 2 | . 1 1 Ballistic Cannon 1 | . 1 . Launcher . | . . . Special Weapon . | . . . Impact Weapon . | . . . Slashing Weapon . | . . . Piercing Weapon . | . . . Special Melee Weapon . | . . . Unidentified Prototypes . | . . . Parts Lost 8 | . 1 7 Power 2 | . 1 1 Propulsion 2 | . . 2 Utility . | . . . Weapon 4 | . . 4 Highest Loss Streak 5 | . 1 5 To Critical Strikes . | . . . Average Slot Usage (%) 71 | . 84 62 Engine 11 | . 13 10 Leg 23 | . 28 20 Storage 12 | . 14 11 Energy Gun 2 | . 6 . Ballistic Gun 12 | . 14 10 Ballistic Cannon 8 | . 7 9 Naked Turns . | . . . Heaviest Build 16 | 10 14 16 Greatest Support 20 | 20 20 20 Greatest Overweight (x) 1 | . . 1 Average Overweight (x) . | . . . Largest Inventory Capacity 8 | 8 8 8 Average Capacity 8 | 8 8 8 Most Carried 8 | 6 6 8 Average Carried 6 | 6 6 7 Final Capacity 8 | 8 8 8 Final Carried 7 | 6 6 7 Class Distribution -------------------- 100% | Mutant Dominant Class ---------------- Mutant | -10/Materials Mutant | -9/Materials Resources | -11 -10 -9 ----------- Run | Yrd Mat Mat Matter Collected 582 | 200 69 313 Remotely . | . . . Salvage Created 595 | . 207 388 Parts 36 | . 13 23 Haulers Intercepted . | . . . Recyclers Shooed 2 | . 2 . Parts Field Recycled . | . . . Retrieved Matter . | . . . Parts Self-Destructed . | . . . Prevented . | . . . Kills | -11 -10 -9 ------- Run | Yrd Mat Mat Combat Hostiles Destroyed 17 | . 6 11 Guns 3 | . 1 2 Cannons 14 | . 5 9 Classes Destroyed 5 | . 2 3 Builder 1 | . 1 . Operator 1 | . . 1 Watcher 1 | . . 1 Grunt 16 | . 6 10 Sentry 1 | . . 1 Best Kill Streak 4 | . 4 3 Combat Bots Only 4 | . 4 3 Max Kills in Single Turn 1 | . 1 1 Gunslinging . | . . . Exploded . | . . . Melee . | . . . Uniques/NPCs Destroyed . | . . . Combat | -11 -10 -9 -------- Run | Yrd Mat Mat Hostile Shots Fired 176 | . 39 137 Missed 54 | . 13 41 Damage Taken 1310 | . 283 1027 Core 418 | . 11 407 Absorbed by Shields . | . . . Core Remaining (%) 97 | 100 95 . Volleys Fired 78 | . 24 54 Largest 2 | . 2 2 Hottest 60 | . 60 60 Shots Fired 145 | . 48 97 Gun 84 | . 26 58 Cannon 61 | . 22 39 Launcher . | . . . Special . | . . . Kinetic 139 | . 46 93 Thermal 6 | . 2 4 Explosive . | . . . Electromagnetic . | . . . Robot Hit Streak 12 | . 12 10 Robot Miss Streak 4 | . 4 3 Penetration Max . | . . . Secondary Targets . | . . . Shots Hit Robots 81 | . 28 53 Core Hits 37 | . 11 26 Critical Kills . | . . . Critical Parts Destroyed . | . . . Critical Strikes 3 | . 1 2 Blast 3 | . 1 2 Melee Attacks . | . . . Impact . | . . . Slashing . | . . . Piercing . | . . . Sneak Attacks . | . . . Combat Hostiles . | . . . Follow-up Attacks . | . . . Damage Inflicted 1203 | . 477 726 Guns 376 | . 112 264 Cannons 720 | . 260 460 Explosions 101 | . 101 . Melee . | . . . Ramming 6 | . 4 2 Kinetic 1053 | . 372 681 Thermal 144 | . 101 43 Explosive . | . . . Electromagnetic . | . . . Impact . | . . . Slashing . | . . . Piercing . | . . . Highest Corruption 1 | . . 1 Average Corruption 1 | . . 1 Corruption Purged . | . . . Corruption Blocked . | . . . Overload Shots . | . . . Overflow Damage 10 | . . 10 Projectiles 10 | . . 10 Explosions . | . . . Melee . | . . . Knockbacks 6 | . 3 3 Impact . | . . . Kinetic 6 | . 3 3 Secondary . | . . . Self-Inflicted Damage . | . . . Shots . | . . . Rammed . | . . . Targets Rammed 4 | . 3 1 Kicked 4 | . 3 1 Crushed . | . . . Highest Temperature 46 | . 46 29 Average Temperature 14 | . 21 9 Received Heat Transfer 582 | . 156 426 Siege Activations . | . . . Robots Corrupted . | . . . Combat Hostiles . | . . . Parts Fried . | . . . Impact Corruptions . | . . . Robots Melted . | . . . Combat Hostiles . | . . . Parts Melted . | . . . Heat Transferred 150 | . 50 100 Parts Sabotaged . | . . . Parts Stolen . | . . . Parts Stripped . | . . . Power Chain Reactions . | . . . Alert | -11 -10 -9 ------- Run | Yrd Mat Mat Peak Influence 416 | . 235 416 Initial 98 | . . 98 Average 191 | . 145 227 Maximum Alert Level 2 | . 1 2 Low Security (%) 43 | 100 52 35 Level 1 53 | . 47 58 Level 2 3 | . . 6 Level 3 . | . . . Level 4 . | . . . Level 5 . | . . . High Security . | . . . Max Security . | . . . Squads Dispatched 5 | . 3 2 Investigation 2 | . 2 . Extermination . | . . . Reinforcement 3 | . 1 2 Assault . | . . . Garrison . | . . . Intercept . | . . . Searches Triggered . | . . . Construction Impeded . | . . . Haulers Reinforced . | . . . Active Scanning Responses . | . . . Cargo Convoy Interrupts . | . . . Stealth | -11 -10 -9 --------- Run | Yrd Mat Mat Distress Signals 3 | . . 3 Communications Jammed . | . . . Distress Signals . | . . . Times Spotted 37 | . 8 29 Peak Tracking Total 10 | . 4 10 Tactical Retreats 1 | . . 1 Traps | -11 -10 -9 ------- Run | Yrd Mat Mat Traps Triggered 3 | . 2 1 Indirectly . | . . . Trap Hack Attempts . | . . . Triggered . | . . . Disarmed . | . . . Reprogrammed . | . . . Reused . | . . . Traps Extracted . | . . . Installed . | . . . Triggered . | . . . Machines | -11 -10 -9 ---------- Run | Yrd Mat Mat Machines Disabled 2 | . 2 . Max in Single Turn 2 | . 2 . Machines Repaired . | . . . Machines Dismantled . | . . . Machines Sabotaged . | . . . Overloaded Fab Kills . | . . . Hacking | -11 -10 -9 --------- Run | Yrd Mat Mat Machines Accessed 6 | . 5 1 Terminals 6 | . 5 1 Fabricators . | . . . Repair Stations . | . . . Recycling Units . | . . . Scanalyzers . | . . . Garrison Access . | . . . Total Hacks 11 | . 9 2 Successful 5 | . 4 1 Failed 6 | . 5 1 Catastrophic 1 | . . 1 Database Lockouts . | . . . Manual 2 | . 2 . Terminals 11 | . 9 2 Fabricators . | . . . Repair Stations . | . . . Recycling Units . | . . . Scanalyzers . | . . . Garrison Access . | . . . Terminal Hacks 5 | . 4 1 Robot Analysis 1 | . 1 . Branch Access Points 1 | . 1 . Unreport Threat 1 | . . 1 Security Status 1 | . 1 . Recall Investigation 1 | . 1 . Fabricator Hacks . | . . . Repair Station Hacks . | . . . Recycling Unit Hacks . | . . . Scanalyzer . | . . . Garrison Access Hacks . | . . . Unauthorized Hacks . | . . . Terminals . | . . . Fabricators . | . . . Repair Stations . | . . . Recycling Units . | . . . Scanalyzers . | . . . Garrison Access . | . . . Data Cores Recovered . | . . . Used . | . . . Hacking Detections 4 | . 3 1 Full Trace Events 1 | . 1 . Feedback Events . | . . . Feedback Blocked . | . . . Robot Schematics Acquired . | . . . Robots Built . | . . . Authchips . | . . . Time . | . . . Total Robot Build Rating . | . . . Part Schematics Acquired . | . . . Parts Built . | . . . Authchips . | . . . Time . | . . . Total Part Build Rating . | . . . Parts Repaired . | . . . Time . | . . . Parts Recycled . | . . . Recycled Matter . | . . . Retrieved Matter . | . . . Retrieved Components . | . . . Parts Scanalyzed . | . . . Part Schematics Acquired . | . . . Parts Damaged . | . . . Bothacking | -11 -10 -9 ------------ Run | Yrd Mat Mat Used RIF Installer . | . . . Robots Hacked . | . . . Non-combat . | . . . Combat . | . . . Robot Hacks Applied . | . . . Relay Couplers Released . | . . . Fabnet Peak Effective % . | . . . Robots Rewired . | . . . Allies Hacked . | . . . Hacks Repelled . | . . . Allies | -11 -10 -9 -------- Run | Yrd Mat Mat Total Allies . | . . . Largest Group . | . . . Highest-Rated Group . | . . . Highest-Rated Ally . | . . . Total Orders . | . . . Ally Attacks . | . . . Total Damage . | . . . Kills . | . . . Allies Corrupted . | . . . Allies Melted . | . . . Intel | -11 -10 -9 ------- Run | Yrd Mat Mat Robot Analysis Total 1 | . 1 . Derelict Logs Recovered . | . . . Drone Launches . | . . . Drone Recoveries . | . . . Exploration | -11 -10 -9 ------------- Run | Yrd Mat Mat Turns Passed 842 | 2 366 474 Spaces Moved 464 | 2 229 233 Core 10 | . . 10 Treads . | . . . Legs 454 | 2 229 223 Wheels . | . . . Hover . | . . . Flight . | . . . Fastest Speed 100 | 120 120 100 Average Speed 119 | 120 120 119 Slowest Speed 120 | 120 120 120 Overloaded Moves . | . . . Propulsion Burnouts . | . . . Robots Hopped . | . . . Cave-ins Triggered . | . . . Exploration Rate (%) 21 | 1 43 20 Regions Visited 2 Branch Regions . Pre-discovered Areas . | . . . Known Exits Taken . | . . . Unknown Exits Taken 2 | 1 1 . Scrap Searched . | . . . Spaces Dug . | . . . Terrain Destroyed 25 | . 25 . Melee . | . . . Projectile . | . . . AOE 25 | . 25 . Terrain Rammed . | . . . Walls Destroyed . | . . . Machines Disabled . | . . . Actions | -11 -10 -9 --------- Run | Yrd Mat Mat Total 621 | 1 275 345 Wait 59 | . 16 43 Move 462 | 1 228 233 Hop . | . . . Pick Up 1 | . . 1 Fast Attach 4 | . 3 1 Attach 1 | . . 1 Detach . | . . . Swap 6 | . . 6 Drop 6 | . 1 5 Fire 78 | . 24 54 Melee . | . . . Ram . | . . . Kick 4 | . 3 1 Crush . | . . . Escape Stasis . | . . . Rewire . | . . . Trap . | . . . Miscellaneous . | . . . Route ------- -11/Scrapyard -10/Materials (discovered 3 exits: *Mat / Min x2) -9/Materials History --------- Turn | Location | Event 1 | -11/Scrapyard | Discovered new exit (range 1) 3 | -11/Scrapyard | Entered Materials 61 | -10/Materials | Identified exit to Mines 304 | -10/Materials | Build established: Mutant 357 | -10/Materials | Discovered new exit (range 9) 369 | -10/Materials | Entered another Materials area 369 | -9/Materials | Evolved 2 slots: Utility x2 824 | -9/Materials | Core integrity fell below 50% 837 | -9/Materials | Core integrity fell below 20% 843 | -9/Materials | Destroyed by S-10 Pest with Light Assault Rifle Last Messages --------------- >>Alert(Purge) Purged threat record, alert level lowered. 00758_ W-16 Scout sends out distress signal. 00758_ K-01 Serf collects debris. 00760_ K-01 Serf cleans the Fusion Modulator. 00760_ K-01 Serf collects debris. 00769_ Lgt. Cannon destroyed. 00769_ Lgt. Assault Rifle destroyed. 00776_ K-01 Serf cleans the Terminal. 00779_ Critical hit (Burn: +37). 00781_ K-01 Serf cleans the Terminal. 00811_ Aluminum Leg destroyed. 00814_ Imp. Ion Engine destroyed. 00816_ Aluminum Leg destroyed. 00817_ G-34 Mercenary destroyed. 00821_ Acquired Sml. Laser. 00833_ G-47 Trooper destroyed. 00834_ Sml. Laser destroyed. 00835_ Lgt. Assault Rifle destroyed. 00836_ Acquired 33 matter. Map ----- +----------------------------------------------------+ | ????????????????????????????????????? | | ????????????????????????????????????? | | ????????????????????????????????????? | | ????????????????????????????????????? | | ????????????????????????????????????? | | ????????????????????????????????????? | | ????????????????????????????????????? | | ????????????????????????????????????? | | ????????????????????????????????????? | | ????????????????????????????????????? | | ????????????????????????????????????? | | ????????????????????????????????????? | | ?????????????????###########????????? | | ?????????????????# #????????? | | ?????????????????# #????????? | | ?????????????????# ###??????? | | ?????????????????# + ???????? | | ?????????????????# #????????? | | ?????????????????# #????????? | | ?????????????????? % ?????????? | | ???????????????????? ???????????? | | ???????????????????###+###??????????? | | ?????????########### #??????????? | | ?????????# s%s #??????????? | | ?????????# s=%= #??????????? | | ?????????# @ g #??????????? | | ?????????# ####### #??????????? | | ??######## ####??#######??????????? | | ?? # ##T###########?????????? | | ? # ???? | | ? """ # ???? | | # """ # """ """ """ ""????? | | # """%#[ """ """ """????????? | | # """%+* """ """ ""?????????? | | # "" !#[ % ????????? | | # # ????????? | | # # ########"T"##??????????? | | ?######### #? #"""#???????????? | | ??# # # #?##????????????? | | ??# # # """#???????????????? | | ??# + + """#???????????????? | | ??# """ # # """#???????????????? | | ??? ????# # #???????????????? | | ?????????# %#?######???????????????? | | ??######## %#??????????????????????? | | ??# !#% !#??????????????????????? | | ??# """*#[= ##########?????????????? | | ??# "T" +%%%# #?????????????? | | ??# !#% # #?????????????? | | ??# =#[% # #?????????????? | +----------------------------------------------------+ Best States ------------- Heat Dissipation 28 Energy Generation 12 Energy Capacity 265 Matter Stores 300 Matter Capacity 300 Sight Range 16 Terrain Scan Density 10 Evasion (%) 55 Item Schematics ----------------- None Robot Schematics ------------------ None Fabricated ------------ Nothing Alien Tech Used ----------------- None Achievements -------------- None Challenges ------------ None Game ------ Seed NeutrinoMetafieldKatana Manual? 0 Play Time 00:12:08 Cumulative 71.1 hours Start 2024.05.31 @ 20:29:29 End 2024.05.31 @ 20:37:21 Sessions 1 Manual Loads 0 Difficulty Rogue Special Mode None Game No. 100 Rogue 16 Adventurer 79 Explorer 5 Win Type - Total 2 Types 2/0/0/0/0/0/0/0/0 Lore% 34 Gallery% 50 Achievement% 38 Wizard Run 0 Options --------- Layout 1 ASCII 0 Keyboard 0 Movement Arrows Keybinds 0 Fullscreen 2 Font 24/Smallcaps Map View 50x35 Zoom Use 0% Tactical HUD 1 Map Filters NONE Filters NONE Steam 1 RUN: 2c3cab84-5629-436f-9b82-52a3c4a5a648